bitfinex/quotes_SOLUSD_20250204
["timestamp","ask_amount","ask_price","bid_price","bid_amount"]
[1738628996862,0.03,216.0,215.88,20.0]
[1738628997174,4.6597,216.0,215.89,13.41184853]
[1738628997549,22.63974942,215.99,215.85,20.0]
[1738628998164,22.63974942,215.99,215.89,20.0]
[1738628998578,4.63,215.98,215.89,20.0]
[1738628998875,4.6597,216.0,215.9,13.41184853]
[1738628999574,4.6597,216.0,215.87,0.69462332]
[1738628999575,22.63974942,215.99,215.87,5.32682332]
[1738628999782,22.63974942,215.99,215.87,4.6322]
[1738629000581,27.26974942,215.99,215.91,20.0]
[1738629000960,22.63974942,215.97,215.82,6.4422]
[1738629001279,27.26974942,215.99,215.87,13.41184853]
[1738629001581,22.63974942,215.97,215.86,20.0]
[1738629001873,4.63,215.99,215.9,20.0]
[1738629002455,22.63974942,215.98,215.84,4.6328]
[1738629002672,22.63974942,215.96,215.84,4.6328]
[1738629002880,4.6298,215.99,215.85,33.41184853]
[1738629002881,22.63974942,215.98,215.85,33.41184853]
[1738629003675,4.6302,215.97,215.86,4.6326]
[1738629003880,22.63974942,215.96,215.85,33.41184853]
[1738629004066,22.63974942,215.96,215.85,20.0]
[1738629004379,22.63974942,215.94,215.85,20.0]
[1738629004597,22.63974942,215.88,215.77,6.2096]
[1738629005571,22.63974942,215.86,215.77,6.2096]
[1738629005773,22.63974942,215.82,215.77,0.063]
[1738629006293,22.63974942,215.8,215.77,0.063]
[1738629006795,22.63974942,215.78,215.77,0.063]
[1738629007098,62.5287,215.9,215.77,0.063]
[1738629007099,4.6317,215.9,215.77,6.0916]
[1738629007305,4.6317,215.9,215.78,13.41184853]
[1738629007587,4.6317,215.9,215.77,6.0916]
[1738629007588,22.63974942,215.85,215.77,6.0916]
[1738629007798,22.63974942,215.83,215.77,0.063]
[1738629008682,22.63974942,215.89,215.77,0.063]
[1738629009058,22.63974942,215.87,215.77,0.063]
[1738629009397,22.63974942,215.85,215.77,0.063]
[1738629009677,4.633,215.84,215.77,0.063]
[1738629009878,22.63974942,215.83,215.77,0.063]
[1738629010061,4.633,215.84,215.77,0.063]
[1738629011095,22.63974942,215.79,215.77,0.063]
[1738629011773,4.6343,215.78,215.77,0.063]
[1738629013106,18.04614853,215.78,215.77,0.0001]
[1738629013606,20.0,215.74,215.64,0.063]
[1738629013807,22.63974942,215.69,215.64,0.063]
[1738629014228,22.63974942,215.71,215.64,0.063]
[1738629014509,22.63974942,215.69,215.64,0.063]
[1738629014970,22.63974942,215.67,215.64,0.063]
[1738629015793,4.6369,215.66,215.64,0.063]
[1738629016896,22.63974942,215.69,215.64,0.063]
[1738629017108,4.6347,215.76,215.64,20.063]
[1738629017396,4.6347,215.76,215.65,13.41184853]
[1738629017701,4.6345,215.78,215.65,14.93324853]
[1738629018096,4.6345,215.78,215.65,19.57034853]
[1738629018798,22.63974942,215.75,215.64,0.063]
[1738629019003,22.63974942,215.73,215.64,0.063]
[1738629019202,22.63974942,215.71,215.64,0.063]
[1738629019601,20.0,215.73,215.64,0.063]
[1738629019983,4.6347,215.76,215.64,18.11214853]
[1738629020303,4.6347,215.76,215.64,99.91214853]
[1738629021015,22.63974942,215.79,215.64,99.91214853]
[1738629021190,4.6345,215.78,215.64,99.91214853]
[1738629021706,22.63974942,215.75,215.64,81.863]
[1738629021914,22.63974942,215.73,215.64,81.863]
[1738629022095,20.0,215.74,215.64,81.863]
[1738629022296,22.63974942,215.73,215.64,81.863]
[1738629022493,20.0,215.74,215.64,81.863]
[1738629022904,22.63974942,215.73,215.64,81.863]
[1738629024105,20.0,215.74,215.64,0.063]
[1738629024106,22.63974942,215.71,215.64,0.063]
[1738629024611,22.63974942,215.79,215.65,13.41184853]
[1738629024827,22.63974942,215.79,215.65,95.21184853]
[1738629025308,22.63974942,215.77,215.65,95.21184853]
[1738629025614,22.63974942,215.75,215.64,0.063]
[1738629026386,4.6352,215.74,215.64,0.063]
[1738629026917,22.63974942,215.73,215.64,0.063]
[1738629027215,22.63974942,215.69,215.64,0.063]
[1738629027588,22.63974942,215.67,215.64,0.063]
[1738629028317,4.6369,215.66,215.64,0.063]
[1738629028682,22.63974942,215.65,215.64,0.063]
[1738629029799,20.0,215.62,215.55,0.063]
[1738629030002,22.63974942,215.61,215.55,0.063]
[1738629030391,4.6382,215.6,215.55,0.063]
[1738629030587,22.63974942,215.65,215.55,0.063]
[1738629030795,4.6367,215.67,215.55,13.47484853]
[1738629031189,4.6367,215.67,215.55,0.063]
[1738629031387,3.7,215.68,215.55,0.75864283]
[1738629031688,4.6361,215.7,215.6,13.41184853]
[1738629032104,13.1933,215.74,215.6,13.41184853]
[1738629032105,4.6352,215.74,215.61,6.5567]
[1738629032516,4.6352,215.74,215.63,13.41184853]
[1738629033508,22.63974942,215.73,215.61,6.5567]
[1738629034219,4.6352,215.74,215.62,13.41184853]
[1738629034397,4.6352,215.74,215.63,0.063]
[1738629034818,4.6352,215.74,215.63,4.7005]
[1738629035319,4.6348,215.76,215.66,13.41184853]
[1738629035531,4.6645,215.78,215.66,13.41184853]
[1738629036600,24.6645,215.78,215.66,13.41184853]
[1738629036805,24.6645,215.78,215.68,13.41184853]
[1738629037406,4.6645,215.78,215.68,13.41184853]
[1738629037611,0.03,215.78,215.76,20.0]
[1738629037916,0.03,215.78,215.77,33.41184853]
[1738629039007,0.03,215.78,215.76,4.6347]
[1738629039229,0.03,215.78,215.77,33.41184853]
[1738629039396,0.03,215.78,215.74,4.635]
[1738629039793,0.03,215.78,215.73,8.2216]
[1738629040392,0.03,215.78,215.77,33.41184853]
[1738629040925,0.03,215.78,215.77,38.04634853]
[1738629041219,4.631,215.94,215.81,20.0]
[1738629041419,28.87354942,215.97,215.81,20.0]
[1738629041420,4.6306,215.96,215.85,20.0]
[1738629041638,4.6602,215.98,215.86,13.41184853]
[1738629041932,4.6602,215.98,215.87,20.0]
[1738629042102,4.6602,215.98,215.88,13.41184853]
[1738629042522,22.63974942,215.97,215.86,1.5432]
[1738629042709,22.63974942,215.97,215.84,6.2943]
[1738629043028,22.63974942,215.91,215.81,1.5432]
[1738629043346,22.63974942,215.89,215.79,6.5154]
[1738629044019,22.63974942,215.91,215.8,13.41184853]
[1738629045002,22.63974942,215.89,215.79,6.5154]
[1738629045418,22.63974942,215.89,215.76,1.5926]
[1738629045419,22.63974942,215.87,215.76,1.5926]
[1738629046035,22.63974942,215.89,215.76,1.5926]
[1738629046244,0.03,215.91,215.77,0.25098]
[1738629046406,0.03,215.91,215.82,13.41184853]
[1738629046607,0.03,215.91,215.86,6.0353]
[1738629046822,0.03,215.91,215.88,4.6322]
[1738629047326,4.6602,215.98,215.93,20.0]
[1738629047327,0.03,215.98,215.93,20.0]
[1738629047522,0.03,215.98,215.94,0.69439969]
[1738629047834,0.03,215.98,215.93,20.0]
[1738629048216,0.03,215.98,215.92,13.41184853]
[1738629048434,0.03,215.98,215.92,14.10633419]
[1738629049304,0.03,215.98,215.94,13.41184853]
[1738629049513,0.03,215.98,215.95,20.0]
[1738629049830,0.03,215.98,215.97,13.41184853]
[1738629050335,0.03,215.98,215.95,20.0]
[1738629050805,0.03,215.98,215.92,81.8]
[1738629051144,0.03,215.98,215.84,94.8823]
[1738629051521,0.03,215.98,215.9,33.41184853]
[1738629051705,0.03,215.98,215.96,13.41184853]
[1738629053502,0.03,215.98,215.97,18.04204853]
[1738629054403,0.03,215.98,215.97,24.62492853]
[1738629054604,0.03,215.98,215.97,24.37394853]
[1738629056504,0.03,215.98,215.97,6.3319]
[1738629056711,0.03,215.98,215.95,86.4305]
[1738629057141,0.03,216.0,215.97,20.0]
[1738629057345,0.03,216.0,215.95,81.8]
[1738629057832,0.03,216.0,215.95,86.4306]
[1738629058414,0.03,216.0,215.92,6.4105]
[1738629058613,0.03,216.0,215.92,11.0417]
[1738629058807,0.03,216.0,215.93,14.10625677]
[1738629059247,0.03,216.0,215.97,13.41184853]
[1738629059628,0.03,215.98,215.97,13.41184853]
[1738629059829,0.03,215.98,215.97,18.04204853]
[1738629060943,0.03,215.98,215.92,81.8]
[1738629061236,0.03,215.98,215.91,0.063]
[1738629062222,36.71611335,215.97,215.91,0.063]
[1738629062458,0.03,215.98,215.91,0.063]
[1738629062817,0.03,215.98,215.92,20.0]
[1738629063130,0.03,215.98,215.93,13.41184853]
[1738629063445,0.03,215.98,215.97,13.41184853]
[1738629063742,0.03,216.0,215.99,33.41184853]
[1738629063916,0.03,216.0,215.99,34.10601614]
[1738629064528,0.03,216.0,215.99,38.73581614]
[1738629064840,0.0001,216.07,216.06,20.25098]
[1738629065026,0.0101,216.09,216.07,13.66282853]
[1738629065232,0.03,216.13,216.09,0.25098]
[1738629065554,0.03,216.13,216.12,33.66282853]
[1738629065739,0.03,216.13,216.12,34.35653056]
[1738629066442,0.03,216.13,216.12,38.98353056]
[1738629066825,0.063,216.18,216.13,13.66282853]
[1738629067027,0.063,216.18,216.17,13.41184853]
[1738629068663,0.03,216.24,216.23,20.0]
[1738629069123,0.03,216.24,216.23,33.41184853]
[1738629070547,0.03,216.24,216.23,38.03654853]
[1738629070737,0.03,216.24,216.23,38.28752853]
[1738629070939,0.03,216.24,216.23,38.03654853]
[1738629071129,0.03,216.24,216.23,33.41184853]
[1738629071333,0.03,216.24,216.17,4.6258]
[1738629071529,0.03,216.24,216.23,33.41184853]
[1738629071743,0.063,216.32,216.28,20.0]
[1738629071967,0.063,216.32,216.31,33.41184853]
[1738629072372,0.063,216.32,216.21,1.0]
[1738629072667,0.063,216.32,216.29,20.0]
[1738629072965,0.063,216.32,216.31,13.41184853]
[1738629073464,0.063,216.32,216.31,14.66282853]
[1738629073643,0.03,216.35,216.34,33.66282853]
[1738629073829,0.063,216.36,216.35,15.66282853]
[1738629074026,0.063,216.36,216.35,13.66282853]
[1738629074231,0.063,216.36,216.35,0.25098]
[1738629074643,0.063,216.36,216.35,18.28492853]
[1738629074945,1.5112,216.5,216.39,20.25098]
[1738629075133,6.1302,216.5,216.39,20.0]
[1738629075544,1.5112,216.5,216.4,13.41184853]
[1738629075853,4.618,216.54,216.38,20.0]
[1738629076038,4.618,216.54,216.39,13.66282853]
[1738629076451,36.71611335,216.51,216.35,4.6221]
[1738629076946,36.71611335,216.51,216.37,20.0]
[1738629077344,4.618,216.54,216.42,13.41184853]
[1738629077749,6.4245,216.55,216.45,20.0]
[1738629077951,4.6177,216.56,216.46,13.41184853]
[1738629078143,4.6168,216.6,216.48,13.41184853]
[1738629078543,4.6168,216.6,216.48,18.03094853]
[1738629078940,6.4245,216.67,216.51,20.0]
[1738629079148,6.4245,216.67,216.5,14.41184853]
[1738629079351,6.4245,216.67,216.54,13.41184853]
[1738629079548,6.4245,216.67,216.59,20.0]
[1738629079853,4.6142,216.72,216.6,14.1041644]
[1738629080055,4.6142,216.72,216.64,13.41184853]
[1738629080251,1.16502068,216.73,216.64,13.41184853]
[1738629080555,6.1491,216.75,216.64,13.41184853]
[1738629080761,36.71611335,216.73,216.61,20.0]
[1738629081139,36.71611335,216.73,216.59,20.0]
[1738629081556,54.39921335,216.75,216.6,13.41184853]
[1738629081860,6.1491,216.75,216.64,13.41184853]
[1738629082066,42.86521335,216.75,216.63,20.0]
[1738629082268,36.71611335,216.73,216.58,20.0]
[1738629082435,36.71611335,216.71,216.58,20.0]
[1738629082766,36.71611335,216.69,216.54,4.6179]
[1738629083055,36.71611335,216.69,216.55,13.41184853]
[1738629083240,36.71611335,216.69,216.54,13.41184853]
[1738629083447,36.71611335,216.69,216.57,20.0]
[1738629083862,6.4274,216.66,216.5,4.6189]
[1738629084163,36.71611335,216.65,216.5,4.6189]
[1738629084338,36.71611335,216.65,216.54,20.0]
[1738629084532,36.71611335,216.72,216.59,13.41184853]
[1738629084733,1.5655,216.75,216.64,20.0]
[1738629084734,4.6138,216.74,216.64,20.0]
[1738629084959,6.1791,216.75,216.65,14.10397254]
[1738629085159,6.1791,216.75,216.65,13.41184853]
[1738629085870,1.5655,216.75,216.65,13.41184853]
[1738629086067,0.03,216.75,216.69,13.41184853]
[1738629086563,4.6437,216.75,216.59,4.617]
[1738629086749,0.03,216.75,216.62,0.69202808]
[1738629086944,0.03,216.75,216.63,0.25098]
[1738629087147,0.03,216.75,216.62,20.0]
[1738629088254,10.80710894,216.77,216.66,20.0]
[1738629088459,10.80710894,216.77,216.67,13.41184853]
[1738629089161,10.80710894,216.77,216.59,0.69213339]
[1738629089162,10.80710894,216.77,216.61,4.6165]
[1738629089337,4.6134,216.76,216.62,0.69215124]
[1738629089541,4.6134,216.76,216.63,33.66282853]
[1738629089735,36.71611335,216.84,216.65,13.66282853]
[1738629089967,4.6114,216.85,216.72,20.0]
[1738629090278,4.6108,216.88,216.77,13.41184853]
[1738629090442,7.6623,216.89,216.81,13.41184853]
[1738629090759,36.71611335,216.9,216.8,20.0]
[1738629090964,36.71611335,216.88,216.74,4.6138]
[1738629091339,36.71611335,216.88,216.75,13.41184853]
[1738629091540,36.71611335,216.92,216.78,20.0]
[1738629091747,36.71611335,216.94,216.82,20.0]
[1738629092159,36.71611335,216.94,216.83,13.41184853]
[1738629092365,16.1326,216.95,216.83,13.41184853]
[1738629092366,4.6095,216.95,216.87,13.41184853]
[1738629092664,4.6095,216.95,216.86,20.0]
[1738629092849,36.71611335,216.94,216.79,4.6126]
[1738629093054,36.71611335,216.92,216.74,4.6138]
[1738629093261,36.71611335,216.9,216.8,20.0]
[1738629093455,36.71611335,216.92,216.81,13.41184853]
[1738629094277,36.71611335,216.9,216.77,4.613]
[1738629094445,36.71611335,216.9,216.77,38.02484853]
[1738629094641,4.6102,216.91,216.77,38.02484853]
[1738629094869,36.71611335,216.88,216.77,38.02484853]
[1738629095071,36.71611335,216.88,216.75,24.6134]
[1738629095340,36.71611335,216.84,216.71,4.6142]
[1738629095560,36.71611335,216.82,216.65,7.14862853]
[1738629095750,36.71611335,216.82,216.66,4.6155]
[1738629096147,4.6127,216.79,216.74,0.063]
[1738629097153,36.71611335,216.78,216.74,0.063]
[1738629097441,36.71611335,216.76,216.74,0.063]
[1738629098354,4.6136,216.75,216.74,0.063]
[1738629098673,36.71611335,216.7,216.53,4.6182]
[1738629099368,14.30928158,216.7,216.53,4.6182]
[1738629099568,4.6146,216.7,216.59,20.0]
[1738629099761,4.6146,216.7,216.56,13.41184853]
[1738629100159,36.71611335,216.66,216.52,6.4275]
[1738629100352,36.71611335,216.66,216.52,11.0458]
[1738629100746,36.71611335,216.64,216.52,0.063]
[1738629101058,36.71611335,216.64,216.53,13.41184853]
[1738629102470,4.6151,216.68,216.57,13.41184853]
[1738629103080,6.2603,216.69,216.57,13.41184853]
[1738629103248,4.6138,216.74,216.61,13.41184853]
[1738629103453,20.0,216.72,216.61,13.41184853]
[1738629103659,4.6138,216.74,216.61,13.41184853]
[1738629103858,1.5355,216.76,216.65,13.41184853]
[1738629104257,4.6136,216.75,216.65,18.02744853]
[1738629105273,4.6136,216.75,216.65,13.41184853]
[1738629105479,4.6136,216.75,216.61,24.6164]
[1738629105789,4.6136,216.75,216.62,13.41184853]
[1738629106084,4.6136,216.75,216.66,13.41184853]
[1738629106450,4.6125,216.8,216.66,18.02714853]
[1738629107093,36.71611335,216.77,216.6,6.4623]
[1738629107257,36.71611335,216.75,216.6,6.4623]
[1738629107576,36.71611335,216.77,216.64,13.41184853]
[1738629107959,16.1438,216.8,216.64,13.41184853]
[1738629108277,16.1438,216.8,216.68,13.41184853]
[1738629109374,16.1438,216.8,216.65,0.063]
[1738629109375,36.71611335,216.79,216.65,0.063]
[1738629109583,16.1438,216.8,216.66,13.41184853]
[1738629109881,36.71611335,216.79,216.65,0.063]
[1738629110080,36.71611335,216.77,216.65,0.063]
[1738629110378,4.6133,216.76,216.65,0.063]
[1738629111178,4.6125,216.8,216.68,13.41184853]
[1738629112282,4.6125,216.8,216.69,4.6148]
[1738629112666,4.6125,216.8,216.7,13.41184853]
[1738629113070,1.6257,216.83,216.74,13.41184853]
[1738629113271,4.6114,216.85,216.74,13.41184853]
[1738629113461,10.7169,216.87,216.78,13.41184853]
[1738629115987,10.7169,216.87,216.72,6.0667]
[1738629116171,36.71611335,216.84,216.71,4.6143]
[1738629116364,36.71611335,216.8,216.67,4.6151]
[1738629116683,36.71611335,216.8,216.68,13.41184853]
[1738629116983,36.71611335,216.82,216.67,4.6151]
[1738629117294,36.71611335,216.8,216.68,13.41184853]
[1738629117581,4.6127,216.79,216.68,13.41184853]
[1738629117784,4.6127,216.79,216.71,20.0]
[1738629117992,4.6127,216.79,216.72,13.41184853]
[1738629118365,41.32881335,216.79,216.67,20.0]
[1738629118565,4.6127,216.79,216.67,20.0]
[1738629118870,4.6127,216.79,216.68,13.41184853]
[1738629120083,4.6112,216.86,216.72,13.41184853]
[1738629120401,36.71611335,216.85,216.72,13.41184853]
[1738629120563,4.6112,216.86,216.75,20.0]
[1738629120882,38.36631335,216.89,216.8,13.41184853]
[1738629120883,1.6502,216.89,216.8,13.41184853]
[1738629121055,6.2608,216.89,216.8,13.41184853]
[1738629121255,4.6103,216.91,216.8,13.41184853]
[1738629121485,6.2599,216.92,216.84,13.41184853]
[1738629121694,0.03,216.92,216.81,0.94262318]
[1738629121873,0.03,216.92,216.82,4.6121]
[1738629122075,0.03,216.92,216.76,12.2248569]
[1738629122393,0.03,216.92,216.81,11.5243]
[1738629122593,0.03,216.92,216.82,13.41184853]
[1738629123465,0.03,216.92,216.86,13.41184853]
[1738629123800,0.03,216.92,216.87,4.611]
[1738629124878,0.03,216.92,216.85,4.6113]
[1738629125074,0.03,216.92,216.9,13.41184853]
[1738629125879,0.03,216.97,216.93,20.0]
[1738629126085,0.03,216.97,216.96,33.66282853]
[1738629126283,0.03,217.02,217.0,20.0]
[1738629126498,0.03,217.02,217.01,13.41184853]
[1738629126863,0.03,217.02,217.01,13.66282853]
[1738629127084,1.5013,217.17,217.05,13.41184853]
[1738629127393,38.21741335,217.17,217.05,13.41184853]
[1738629127893,4.6048,217.16,217.05,13.41184853]
[1738629128077,36.74611335,217.14,216.98,4.6087]
[1738629128476,36.74611335,217.14,216.99,13.41184853]
[1738629128477,0.03,217.14,216.99,13.41184853]
[1738629128688,0.03,217.14,217.07,13.41184853]
[1738629129768,36.74611335,217.14,216.96,4.6091]
[1738629130186,36.74611335,217.14,217.0,20.0]
[1738629130391,36.74611335,217.14,217.05,13.41184853]
[1738629130601,36.71611335,217.12,216.99,20.0]
[1738629131093,36.71611335,217.1,216.92,1.17334981]
[1738629131883,36.71611335,217.06,216.91,4.6102]
[1738629132077,36.71611335,217.02,216.89,11.54087394]
[1738629132279,36.71611335,217.02,216.89,6.93047394]
[1738629132594,36.71611335,217.02,216.89,13.41184853]
[1738629132908,1.6388,217.03,216.81,21.4858564]
[1738629132909,36.71611335,217.0,216.82,4.6121]
[1738629133210,1.6388,217.03,216.87,13.66282853]
[1738629133511,1.6388,217.03,216.93,13.41184853]
[1738629133682,1.6388,217.03,216.92,20.0]
[1738629133876,4.6078,217.02,216.92,20.0]
[1738629134077,4.6078,217.02,216.93,13.41184853]
[1738629134588,4.6076,217.04,216.93,13.41184853]
[1738629134778,4.6065,217.08,216.97,13.41184853]
[1738629135482,36.71611335,217.06,216.92,4.6098]
[1738629135783,36.71611335,217.04,216.92,4.6098]
[1738629136017,36.71611335,217.04,216.89,13.66282853]
[1738629136319,4.6076,217.03,216.93,13.41184853]
[1738629136878,4.6068,217.07,216.93,13.41184853]
[1738629137115,4.6068,217.07,216.97,13.41184853]
[1738629138251,4.6068,217.07,216.98,4.6087]
[1738629138528,4.6068,217.07,216.93,0.25098]
[1738629138529,36.71611335,217.06,216.93,4.6097]
[1738629138822,4.6068,217.07,216.97,20.0]
[1738629138998,4.6068,217.07,216.98,13.41184853]
[1738629140116,6.1345,217.09,216.98,18.02054853]
[1738629140317,6.1345,217.09,216.97,20.0]
[1738629140523,36.71611335,217.08,216.88,11.5268]
[1738629140734,36.71611335,217.06,216.89,0.69124684]
[1738629140938,36.71611335,217.08,216.96,13.41184853]
[1738629141108,1.528,217.09,217.0,13.41184853]
[1738629141303,1.528,217.09,217.04,13.41184853]
[1738629141618,41.35191335,217.12,217.03,20.0]
[1738629142534,41.35191335,217.12,216.95,17.9265]
[1738629142535,52.86621335,217.12,216.96,4.6091]
[1738629142834,36.71611335,217.08,216.96,4.6091]
[1738629143436,36.71611335,217.06,216.92,4.6099]
[1738629143645,36.71611335,217.04,216.92,4.6099]
[1738629143809,17.1501,217.12,216.94,13.41184853]
[1738629143810,4.6068,217.07,216.94,13.41184853]
[1738629144147,4.6068,217.07,216.93,13.66282853]
[1738629144441,4.6068,217.07,216.97,13.41184853]
[1738629144602,36.71611335,217.06,216.96,20.0]
[1738629145335,16.1238,217.07,216.97,13.41184853]
[1738629145641,16.1238,217.07,216.98,0.063]
[1738629145852,4.6072,217.05,216.98,0.063]
[1738629146133,36.71611335,217.02,216.98,0.063]
[1738629146303,36.71611335,217.0,216.98,0.063]
[1738629146719,8.0711,217.02,216.98,0.063]
[1738629147123,1.5105,217.02,216.98,0.063]
[1738629148114,4.608,217.01,216.98,0.063]
[1738629148544,1.5105,217.02,216.98,0.063]
[1738629148754,10.2206,217.07,216.98,0.063]
[1738629148755,4.6074,217.05,216.98,0.063]
[1738629149052,27.00795269,217.05,216.98,0.063]
[1738629149233,22.40055269,217.01,216.98,0.063]
[1738629149611,22.40055269,216.99,216.98,0.063]
[1738629150047,22.40055269,217.01,216.98,0.063]
[1738629150247,4.6074,217.04,216.98,0.063]
[1738629150562,6.5606,217.07,216.98,0.063]
[1738629150740,6.5606,217.07,216.98,13.47484853]
[1738629150935,22.40055269,217.13,217.02,13.41184853]
[1738629150936,4.6358,217.12,217.02,13.41184853]
[1738629151752,4.6358,217.12,217.01,20.0]
[1738629152054,22.40055269,217.07,216.98,0.063]
[1738629152237,22.40055269,217.05,216.98,0.063]
[1738629152411,4.607,217.06,216.98,0.063]
[1738629152412,22.40055269,217.03,216.98,0.063]
[1738629153351,22.40055269,217.05,216.98,0.063]
[1738629154151,4.6074,217.04,216.98,0.063]
[1738629154750,22.40055269,217.03,216.98,0.063]
[1738629155933,4.6074,217.04,216.98,0.063]
[1738629156235,22.40055269,217.11,216.98,0.063]
[1738629156438,4.6059,217.11,216.98,0.063]
[1738629157011,0.03,217.12,217.01,13.41184853]
[1738629157315,4.6358,217.12,217.01,13.41184853]
[1738629157517,0.03,217.11,217.01,13.41184853]
[1738629157731,0.03,217.11,216.98,6.3967]
[1738629158032,22.40055269,217.07,216.98,0.063]
[1738629158218,4.6074,217.04,216.98,0.063]
[1738629158409,22.40055269,217.03,216.98,0.063]
[1738629159341,7.7568,217.02,216.98,0.063]
[1738629159512,22.40055269,216.99,216.98,0.063]
[1738629159717,7.7568,217.02,216.98,0.063]
[1738629160533,1.5855,217.02,216.98,0.063]
[1738629160734,6.1934,217.02,216.98,0.063]
[1738629160919,1.5004,217.08,216.98,20.063]
[1738629161122,0.03,217.12,216.99,13.41184853]
[1738629161430,4.6359,217.11,217.0,13.41184853]
[1738629161628,4.6359,217.11,216.99,20.0]
[1738629162143,4.6359,217.11,216.99,13.41184853]
[1738629162542,4.6359,217.11,216.98,20.063]
[1738629162543,36.38327271,217.06,216.98,0.063]
[1738629162735,4.6359,217.11,216.98,0.063]
[1738629162736,36.38327271,217.04,216.98,0.063]
[1738629163044,36.38327271,217.02,216.98,0.063]
[1738629163220,1.0,217.1,216.98,0.063]
[1738629163221,36.38327271,217.04,216.98,0.063]
[1738629163426,36.38327271,217.06,216.98,0.063]
[1738629164542,0.03,217.11,216.99,13.41184853]
[1738629164741,4.6361,217.11,216.98,4.6716]
[1738629164946,4.6361,217.11,217.0,13.41184853]
[1738629165133,4.6361,217.11,216.99,20.0]
[1738629165339,36.38327271,217.06,216.98,0.063]
[1738629165725,36.38327271,217.08,216.98,0.063]
[1738629165934,36.38327271,217.04,216.98,0.063]
[1738629166747,4.6076,217.03,216.98,0.063]
[1738629169943,4.6068,217.07,216.98,0.063]
[1738629170349,4.6065,217.09,216.98,0.063]
[1738629170544,4.6361,217.11,216.98,13.72582853]
[1738629171431,4.6361,217.11,217.0,13.66282853]
[1738629172541,0.03,217.11,217.0,13.41184853]
[1738629172739,0.03,217.11,216.98,0.063]
[1738629172944,36.38327271,217.06,216.98,0.063]
[1738629173247,36.38327271,217.1,216.98,0.063]
[1738629173448,0.03,217.11,216.98,0.063]
[1738629173651,36.38327271,217.1,216.98,0.063]
[1738629174751,4.6063,217.09,216.98,0.063]
[1738629175137,36.38327271,217.06,216.98,0.063]
[1738629175758,4.6063,217.09,216.98,0.063]
[1738629176658,4.6063,217.09,216.99,13.41184853]
[1738629176893,0.03,217.11,217.0,0.25098]
[1738629177058,4.6361,217.11,217.02,13.41184853]
[1738629177634,4.6361,217.11,217.03,0.12549]
[1738629177856,0.03,217.11,217.03,0.25098]
[1738629178767,36.38327271,217.1,216.98,0.063]
[1738629180854,4.6063,217.09,216.98,0.063]
[1738629181450,0.03,217.11,217.05,13.66282853]
[1738629183452,0.03,217.11,217.1,20.0]
[1738629183649,0.03,217.14,217.11,0.25098]
[1738629183962,0.03,217.25,217.1,34.35356771]
[1738629183963,0.03,217.25,217.13,13.66282853]
[1738629184167,0.03,217.25,217.17,13.66282853]
[1738629184466,0.03,217.25,217.17,0.25098]
[1738629185053,0.03,217.25,217.19,13.66282853]
[1738629185354,0.03,217.25,217.19,13.41184853]
[1738629185777,0.03,217.25,217.2,0.25098]
[1738629185972,0.03,217.25,217.22,13.66282853]
[1738629186270,0.03,217.25,217.21,6.2144]
[1738629186947,0.03,217.25,217.21,11.62368689]
[1738629187154,0.03,217.25,217.22,13.41184853]
[1738629187356,0.03,217.25,217.23,0.25098]
[1738629187556,0.03,217.25,217.24,34.10209236]
[1738629187752,0.03,217.32,217.26,0.25098]
[1738629187951,0.03,217.32,217.26,0.94109257]
[1738629188156,0.03,217.32,217.27,13.41184853]
[1738629188354,0.03,217.32,217.28,0.25098]